bitfinex/quotes_ETHUSD_20241223
["timestamp","ask_amount","ask_price","bid_price","bid_amount"]
[1734969849719,3.50135521,3283.3,3282.4,1.6325]
[1734969849928,3.50135521,3283.3,3282.5,0.16325]
[1734969850860,0.50135521,3283.8,3282.5,3.20966]
[1734969851266,0.50135521,3283.8,3282.7,1.6056]
[1734969851476,0.50135521,3283.8,3283.0,1.6056]
[1734969851766,0.28638471,3285.7,3283.0,1.6056]
[1734969851767,0.50135521,3284.3,3283.1,0.62542778]
[1734969851966,0.48582633,3284.0,3283.2,1.01765237]
[1734969852268,3.04539,3283.7,3283.0,1.6056]
[1734969852465,4.63202,3284.1,3282.5,1.5614]
[1734969852466,3.0459,3283.1,3282.5,1.5614]
[1734969852633,4.63202,3284.1,3282.5,1.5614]
[1734969852634,0.98718154,3283.0,3282.5,1.5614]
[1734969852971,3.0,3282.9,3282.5,1.5614]
[1734969853826,0.48582633,3283.0,3282.5,1.5614]
[1734969854069,0.50135521,3283.6,3282.5,1.71754]
[1734969854228,3.0,3283.5,3282.5,4.7639]
[1734969855187,0.48582633,3283.6,3282.7,3.04624]
[1734969855347,3.48582633,3283.6,3282.5,4.76396]
[1734969855546,3.48582633,3283.6,3282.6,3.522716]
[1734969856080,0.55,3284.0,3282.6,0.476396]
[1734969856255,1.604,3283.7,3282.3,0.03045489]
[1734969856461,1.604,3283.7,3280.7,0.5]
[1734969856462,3.04656,3282.4,3281.3,1.514]
[1734969856665,3.53238633,3282.4,3281.3,1.514]
[1734969856848,3.04727,3281.7,3281.3,1.514]
[1734969857048,0.48582633,3282.3,3281.3,1.514]
[1734969857049,0.95513123,3282.3,3281.3,1.514]
[1734969857286,0.48582633,3282.3,3281.3,1.514]
[1734969857489,0.55,3282.5,3281.3,1.72716356]
[1734969857853,3.04685,3282.1,3281.3,1.72716356]
[1734969858179,0.55,3282.5,3281.3,1.72716356]
[1734969858180,3.0,3282.3,3281.3,1.72716356]
[1734969858374,3.55,3282.5,3281.3,1.72716356]
[1734969858582,0.55,3282.1,3280.9,1.5509]
[1734969858762,3.04753,3281.4,3280.4,1.6538]
[1734969859090,0.55,3281.9,3280.4,1.6538]
[1734969859091,6.04765,3281.3,3280.4,1.6538]
[1734969859295,0.92750623,3282.0,3280.4,1.6538]
[1734969859514,1.00243362,3281.9,3280.5,0.16538]
[1734969859653,3.0,3281.3,3280.5,0.16538]
[1734969859854,0.48869999,3281.8,3280.5,0.16538]
[1734969860091,1.5204,3281.6,3280.4,1.6538]
[1734969860248,3.0,3280.9,3280.4,1.6538]
[1734969860450,6.04797,3280.9,3280.4,1.6538]
[1734969860684,6.04797,3280.9,3279.8,3.04896]
[1734969860902,6.04797,3280.9,3279.9,1.5504]
[1734969860903,0.58049866,3280.8,3279.9,1.5504]
[1734969861214,3.0,3280.1,3279.4,1.5504]
[1734969861550,3.0,3280.9,3279.4,1.58088687]
[1734969861761,1.5204,3281.1,3279.4,1.58088687]
[1734969862114,3.04687,3282.1,3279.4,1.58088687]
[1734969862115,0.45820133,3281.9,3280.6,1.5503]
[1734969862291,1.6177,3282.0,3280.6,1.5503]
[1734969862449,3.04722,3281.7,3280.7,0.459856]
[1734969862655,5.1144981,3282.0,3280.7,3.507956]
[1734969862888,2.0674981,3282.6,3280.8,0.03047456]
[1734969863052,3.04664,3282.3,3281.1,3.04775]
[1734969863274,3.04664,3282.3,3281.2,0.03047156]
[1734969863488,3.04664,3282.3,3281.3,0.30782216]
[1734969863703,2.0674981,3282.6,3281.3,0.30782216]
[1734969864022,3.04682,3282.1,3280.7,0.459856]
[1734969864315,0.4693049,3282.0,3280.8,0.03047441]
[1734969864456,0.4497981,3282.5,3281.3,3.04751]
[1734969864654,3.0,3282.4,3281.4,1.5503]
[1734969865603,0.48029676,3282.3,3281.4,1.5503]
[1734969865902,3.0471,3281.8,3280.9,1.5503]
[1734969866074,3.0,3281.8,3280.9,1.70533]
[1734969866281,3.0,3282.2,3280.9,1.70533]
[1734969866588,3.0,3282.0,3281.0,3.04784]
[1734969866899,0.03049866,3281.9,3280.9,1.5503]
[1734969867098,0.4693049,3282.0,3280.9,1.70533]
[1734969867301,0.9997981,3282.4,3281.0,0.03047305]
[1734969867505,3.0,3282.3,3281.0,0.03047129]
[1734969867799,0.919103,3282.3,3281.0,3.04777]
[1734969868005,3.0,3282.0,3280.9,1.70533]
[1734969868174,0.919103,3282.2,3281.3,3.04756]
[1734969868503,0.919103,3282.2,3281.1,3.04773]
[1734969868504,3.919103,3282.2,3281.1,3.04773]
[1734969868807,3.0,3282.1,3281.1,3.04773]
[1734969869161,0.919103,3282.2,3281.1,0.03046972]
[1734969869366,0.4693049,3282.2,3281.4,3.04743]
[1734969869568,0.4693049,3282.2,3281.5,0.304743]
[1734969869968,3.0,3282.5,3281.3,3.04757]
[1734969870169,3.0,3282.5,3281.5,3.0473]
[1734969870394,3.0,3282.5,3281.6,3.04722]
[1734969870590,0.03049866,3282.4,3281.3,0.61147858]
[1734969870792,3.0,3282.2,3281.3,0.61147858]
[1734969871004,4.66414,3282.6,3281.5,3.04732]
[1734969871005,4.6177,3282.6,3281.5,3.04732]
[1734969871304,4.6177,3282.6,3281.4,0.36591286]
[1734969871305,3.0,3282.4,3281.4,0.36591286]
[1734969871506,3.0,3282.0,3281.4,0.36591286]
[1734969871682,3.0,3282.0,3281.0,3.04777]
[1734969872086,3.0,3281.7,3280.9,1.5503]
[1734969872279,3.4971081,3281.6,3280.9,1.5503]
[1734969872494,3.0,3281.5,3280.9,1.5503]
[1734969872711,0.919103,3281.6,3280.9,1.5503]
[1734969873215,1.6177,3282.6,3281.0,3.04785]
[1734969873385,3.79225454,3282.8,3282.4,1.5621]
[1734969873575,3.79225454,3282.8,3282.4,4.60863]
[1734969874312,3.79225454,3282.8,3282.4,1.5621]
[1734969874486,3.79225454,3282.8,3282.6,3.04635]
[1734969874693,0.4497981,3283.5,3282.6,3.04635]
[1734969875011,3.04563,3283.4,3282.5,0.15621]
[1734969875308,0.4497981,3283.3,3282.6,0.03045765]
[1734969875511,3.79225454,3284.5,3282.6,0.17487677]
[1734969875512,3.04514,3284.0,3282.6,0.17487677]
[1734969875682,0.4693049,3283.9,3283.3,3.04567]
[1734969875882,0.4693049,3284.2,3283.3,1.5524]
[1734969876072,4.24205264,3284.5,3284.1,3.04497]
[1734969876276,3.79225454,3284.5,3283.5,0.03044528]
[1734969876485,6.83650454,3284.9,3283.8,3.04524]
[1734969876697,0.4693049,3284.8,3283.6,0.89804453]
[1734969876898,0.4693049,3284.8,3283.6,0.59990223]
[1734969877211,3.79225454,3284.9,3284.8,4.59672]
[1734969877411,0.28628368,3285.5,3285.1,3.04404]
[1734969877625,3.78664024,3286.0,3285.9,3.0433]
[1734969878305,3.78664024,3286.0,3285.5,3.04365]
[1734969878476,3.78664024,3286.0,3285.4,1.5524]
[1734969878677,0.39788143,3285.9,3285.4,1.5524]
[1734969878876,0.39788143,3285.9,3283.7,8.95]
[1734969879098,1.96318143,3285.9,3284.3,3.66959306]
[1734969879302,3.04371,3285.5,3284.3,3.66959306]
[1734969879472,3.44159143,3285.5,3284.3,3.66959306]
[1734969879683,3.78575057,3285.5,3284.3,4.03655237]
[1734969879937,0.34415914,3285.5,3284.4,3.04464]
[1734969880135,3.34415914,3285.5,3284.4,3.04464]
[1734969880337,3.34415914,3285.5,3283.9,3.04515]
[1734969880338,3.34415914,3285.5,3283.6,8.95]
[1734969880535,3.99164143,3285.4,3283.7,3.0453]
[1734969880747,3.99164143,3285.4,3283.6,8.95]
[1734969880748,3.0,3285.0,3283.9,0.45743]
[1734969880948,0.43358006,3285.3,3283.9,0.45743]
[1734969881170,3.0,3284.5,3283.8,1.529]
[1734969881383,0.55,3284.8,3283.8,1.529]
[1734969881678,0.39788143,3284.7,3283.8,1.529]
[1734969882065,0.55,3284.9,3283.8,1.529]
[1734969882427,3.94788143,3284.9,3283.8,1.529]
[1734969882625,3.04441,3284.7,3283.8,1.529]
[1734969882846,3.94788143,3284.9,3283.8,1.529]
[1734969883063,3.0,3284.7,3283.8,1.529]
[1734969883261,0.39788143,3284.9,3283.8,1.529]
[1734969883446,1.5875,3285.0,3283.8,1.529]
[1734969883655,1.5875,3285.0,3283.9,0.15594451]
[1734969883854,3.0,3284.8,3283.9,0.15594451]
[1734969884045,1.5875,3285.0,3283.9,0.15594451]
[1734969884370,1.5875,3285.0,3283.8,1.529]
[1734969884371,3.0,3284.3,3283.8,1.529]
[1734969884665,6.04484,3284.3,3283.6,0.61344488]
[1734969884970,3.0,3284.4,3283.6,0.61344488]
[1734969885466,3.0,3284.9,3283.8,3.04522]
[1734969886277,3.0,3285.1,3284.0,3.04504]
[1734969886486,3.0,3285.0,3284.1,0.468704]
[1734969886640,3.0,3285.0,3283.9,4.68712]
[1734969886978,3.0,3285.3,3284.0,0.03044287]
[1734969887283,3.04341,3285.8,3284.2,3.04488]
[1734969887580,3.0434,3285.8,3284.6,3.04449]
[1734969887878,1.90718143,3285.9,3284.7,3.04433]
[1734969888050,1.5398,3286.3,3285.2,1.5996]
[1734969888239,4.58275,3286.3,3285.2,4.64354]
[1734969888582,3.04275,3286.5,3285.4,3.04374]
[1734969889183,0.39788143,3286.6,3285.4,0.03043039]
[1734969889475,3.04322,3286.0,3285.4,0.16300304]
[1734969889674,0.39788143,3285.9,3285.4,0.16300304]
[1734969889888,0.39788143,3285.9,3285.2,1.5996]
[1734969890395,1.548,3285.8,3284.0,8.95]
[1734969890679,3.0,3285.2,3284.1,3.0449]
[1734969890856,3.04392,3285.3,3283.9,1.6281]
[1734969890857,3.0,3285.4,3284.0,0.03043977]
[1734969891045,3.0,3285.4,3284.1,3.04489]
[1734969891562,3.04383,3285.4,3284.2,3.66846352]
[1734969891762,0.39788143,3285.7,3284.2,0.62360352]
[1734969891977,0.39788143,3285.7,3284.3,0.03043892]
[1734969892163,1.548,3285.8,3284.8,3.04427]
[1734969892367,3.0,3285.7,3284.9,0.304427]
[1734969892569,3.0,3285.7,3284.6,4.58358]
[1734969892777,3.0,3285.7,3284.7,3.04439]
[1734969892978,3.0,3285.6,3284.6,1.5391]
[1734969893178,0.39788143,3285.6,3284.6,1.5391]
[1734969893380,3.04304,3286.2,3285.0,3.04413]
[1734969893696,3.04304,3286.2,3285.1,3.04402]
[1734969893697,1.5237,3286.2,3285.1,3.04402]
[1734969893865,0.39788143,3286.4,3285.3,1.6195]
[1734969894065,1.5913,3286.7,3285.3,1.6195]
[1734969894066,3.0427,3286.6,3285.4,3.04375]
[1734969894255,1.5913,3286.7,3285.4,3.04375]
[1734969894591,3.04283,3286.5,3285.5,0.466325]
[1734969894801,1.5913,3286.7,3285.6,3.04358]
[1734969895004,3.04219,3287.1,3286.1,1.6271]
[1734969895561,3.02991873,3287.2,3286.1,1.6271]
[1734969895914,0.39788143,3287.1,3286.1,1.6271]
[1734969896052,3.39788143,3287.1,3286.2,0.16271]
[1734969896455,3.39788143,3287.1,3286.1,1.6271]
[1734969896705,3.39788143,3287.1,3285.7,1.6271]
[1734969896866,3.0,3286.7,3285.9,0.59741765]
[1734969897067,3.0,3286.7,3286.0,1.5223]
[1734969897310,3.04174,3287.6,3286.3,3.04284]
[1734969897611,3.04174,3287.6,3286.2,1.5223]
[1734969897612,3.04174,3287.6,3286.5,3.04274]
[1734969897825,1.5819,3287.9,3286.4,0.456514]
[1734969897826,4.62344,3287.9,3286.4,0.456514]
[1734969897977,0.31834959,3288.2,3287.4,1.5223]
[1734969898314,0.31834959,3288.2,3287.4,4.5642]
[1734969898454,3.0414,3288.0,3287.4,1.5223]
[1734969898685,0.31834959,3288.2,3287.4,1.5223]
[1734969898686,3.35953959,3288.2,3287.4,1.5223]
[1734969899076,3.04138,3288.0,3286.9,2.12918012]
[1734969899285,3.04149,3287.9,3286.9,2.12918012]
[1734969899619,3.04129,3288.1,3286.9,2.12918012]
[1734969899814,3.04129,3288.1,3286.9,5.17155012]
[1734969899995,3.0,3288.0,3287.0,0.52019657]
[1734969900196,0.31834959,3288.2,3287.0,3.56247657]
[1734969900397,3.0,3288.1,3287.1,3.04215]
[1734969900729,0.31834959,3288.2,3287.0,0.52019657]
[1734969900939,0.31834959,3288.2,3286.9,2.12918012]
[1734969900940,3.31834959,3288.2,3287.1,3.04217]
[1734969901176,0.31834959,3288.2,3287.3,3.042]
[1734969901327,0.31834959,3288.2,3287.8,3.04151]
[1734969901531,0.31834959,3288.2,3287.9,1.6029]
[1734969901819,0.477321,3288.3,3288.0,3.04129]
[1734969901994,0.477321,3288.3,3288.1,3.505629]
[1734969902200,0.477321,3288.3,3288.1,4.13037544]
[1734969902742,0.477321,3288.3,3288.2,3.04117]
[1734969903481,0.11470281,3288.3,3288.2,4.59867]
[1734969903683,1.38412304,3289.3,3288.5,3.04085]
[1734969904004,1.38412304,3289.3,3288.3,8.95]
[1734969904005,1.38412304,3289.3,3288.6,3.04078]
[1734969904231,1.38412304,3289.3,3288.8,3.04061]
[1734969904388,1.38412304,3289.3,3289.0,1.5575]
[1734969906133,1.38412304,3289.3,3289.1,0.61019655]
[1734969906347,1.38412304,3289.3,3288.7,0.61903556]
[1734969906348,3.0,3289.0,3288.7,0.61903556]
[1734969906492,4.38412304,3289.3,3288.7,0.83668912]
[1734969906695,4.38412304,3289.3,3288.7,0.21765356]
[1734969907109,1.38412304,3289.3,3288.7,0.21765356]
[1734969907492,1.38412304,3289.3,3288.8,3.04053]
[1734969908167,1.38412304,3289.3,3288.7,9.16765356]
[1734969908302,0.1675456,3289.9,3288.8,4.17450857]
[1734969908499,0.1675456,3289.9,3288.9,3.07083469]
[1734969908746,0.1675456,3289.9,3288.9,0.03039469]
[1734969908944,0.1675456,3289.9,3289.7,3.03971]
[1734969909097,1e-08,3289.9,3289.8,4.63039]
[1734969909455,3.28745732,3292.3,3289.8,14.6762115]
[1734969909456,0.39788143,3291.1,3289.8,14.6762115]
[1734969909636,3.43638143,3291.1,3290.0,3.03944]
[1734969909801,3.43638143,3291.1,3289.8,2.65613284]
[1734969909802,0.39788143,3291.1,3289.8,2.65613284]
[1734969910024,3.77404889,3291.3,3289.8,2.65613284]
[1734969910226,0.37235968,3291.2,3289.8,2.65613284]
[1734969910529,0.37235968,3291.2,3289.9,0.26561328]
[1734969910730,3.0,3291.0,3289.9,0.26561328]
[1734969910974,3.0,3290.5,3289.9,0.26561328]
[1734969911453,1.6077,3290.6,3289.9,0.26561328]
[1734969912286,3.0,3290.9,3290.0,3.03951]
[1734969912490,3.0,3290.9,3290.1,0.33051233]
[1734969913272,3.0383,3291.4,3290.3,1.6194]
[1734969913654,3.0383,3291.4,3290.4,3.03912]
[1734969913839,3.03806,3291.6,3290.4,3.03912]
[1734969914038,3.03831,3291.3,3290.3,1.6194]
[1734969914248,1.5916,3291.9,3290.4,0.465871]
[1734969914548,3.03801,3291.7,3290.6,3.03892]
[1734969914991,1.5916,3291.9,3290.4,3.504931]
[1734969915193,4.62943,3291.9,3290.5,0.61216093]
[1734969915356,1.5916,3291.9,3290.5,0.61216093]
[1734969915689,0.22689463,3291.8,3290.5,0.61216093]
[1734969915893,3.03821,3291.5,3290.5,0.61216093]
[1734969916097,3.03794,3291.7,3290.4,0.465871]
[1734969916247,3.0,3290.8,3290.0,9.57313156]
[1734969916445,0.40285834,3291.4,3290.0,9.57313156]
[1734969916446,3.0,3290.5,3290.0,1.14635448]
[1734969916643,0.03049866,3290.5,3289.4,1.6248]
[1734969916896,0.03049866,3290.5,3287.8,0.25]
[1734969916897,3.0,3289.6,3289.0,1.6248]
[1734969917043,4.54978,3289.9,3289.0,1.6248]
[1734969917245,3.0,3289.8,3289.0,1.6248]
[1734969917474,4.5101,3289.9,3289.0,1.6248]
[1734969917688,3.04006,3289.4,3289.3,0.60874785]
[1734969917918,3.0,3289.3,3287.9,10.4974]
[1734969918119,0.03049866,3289.3,3288.1,3.16681768]
[1734969918323,1.38355383,3290.4,3288.5,1.5972]
[1734969918634,3.03925,3290.3,3289.2,0.60460339]
[1734969918807,1.38355383,3290.4,3289.2,0.60460339]
[1734969919011,1.6012,3290.1,3289.2,0.60460339]
[1734969919372,1.6012,3290.1,3289.3,0.36449134]
[1734969919703,7.64063,3290.1,3289.3,0.36449134]
[1734969919888,7.64063,3290.1,3289.2,0.60460339]
[1734969920095,1.6012,3290.1,3288.6,8.95]
[1734969920299,4.6012,3290.1,3289.0,3.0404]
[1734969920603,1.6012,3290.1,3289.2,3.04023]
[1734969921289,1.6012,3290.1,3289.1,0.61446656]
[1734969921487,1.6012,3290.1,3289.2,3.40573466]
[1734969922119,3.0,3290.3,3289.3,1.6217]
[1734969922416,4.38355383,3290.4,3289.4,3.04005]
[1734969922613,4.38355383,3290.4,3289.3,1.6217]
[1734969922791,3.0,3290.2,3289.3,1.6217]
[1734969922976,3.0,3290.2,3289.4,0.50274147]
[1734969923177,4.38355383,3290.4,3289.4,0.50274147]
[1734969923612,7.42269383,3290.4,3289.3,1.6217]
[1734969923994,7.42269383,3290.4,3289.3,4.66181]
[1734969924617,7.42269383,3290.4,3289.3,1.6217]
[1734969924825,7.42269383,3290.4,3289.4,3.04004]
[1734969925234,4.38355383,3290.4,3289.3,1.6217]
[1734969925436,4.38355383,3290.4,3289.5,3.03997]
[1734969925614,4.38355383,3290.4,3289.4,0.19871847]
[1734969925810,4.38355383,3290.4,3289.8,3.03961]
[1734969926133,1.38355383,3290.4,3290.1,3.03933]
[1734969926332,1.38355383,3290.4,3289.6,10.4595]
[1734969926643,1.38355383,3290.4,3289.9,8.95]
[1734969926811,1.38355383,3290.4,3290.3,3.03923]
[1734969927136,1.5888,3291.3,3290.3,3.03923]
[1734969927496,4.62711,3291.3,3289.9,8.95]
[1734969927737,1.5888,3291.3,3290.2,0.6039348]
[1734969928122,3.0,3291.0,3290.2,0.6039348]
[1734969928322,1.5888,3291.3,3290.3,0.36433448]
[1734969928521,1.5888,3291.3,3290.6,3.03893]
[1734969928709,1.5888,3291.3,3290.8,3.03872]
[1734969928910,1.5512,3291.7,3290.8,3.03872]
[1734969929938,1.5512,3291.7,3290.5,1.5454]
[1734969929939,4.58885,3292.1,3291.1,3.03849]
[1734969930148,4.58885,3292.1,3291.2,3.342209]
[1734969930149,1.5512,3292.1,3291.2,3.342209]
[1734969930327,1.5512,3292.1,3291.2,0.303849]
[1734969930328,3.03768,3292.0,3291.2,0.303849]
[1734969930527,1.5512,3292.1,3291.2,0.303849]
[1734969930838,4.58882,3292.1,3291.2,0.303849]
[1734969931029,1.5512,3292.1,3291.3,0.03037825]
[1734969931234,3.03714,3292.6,3291.4,0.33726073]
[1734969931554,1.5512,3292.5,3291.3,1.5454]
[1734969931730,1.5512,3292.5,3291.4,3.03817]
[1734969932314,1.5512,3292.5,3291.5,3.06846594]
[1734969932536,3.0,3292.4,3291.3,1.5454]
[1734969932737,3.0,3292.4,3290.3,3.09666755]
[1734969932738,3.03767,3292.0,3290.9,1.5454]
[1734969932950,3.0,3291.9,3290.9,1.5454]
[1734969933559,3.0,3291.8,3290.9,1.5454]
[1734969933859,1.55319866,3291.7,3290.9,0.62123112]
[1734969934056,3.0,3291.5,3290.5,0.60076503]
[1734969934264,3.0385,3291.1,3290.5,0.60076503]
[1734969934574,3.03856,3291.1,3290.5,0.60076503]
[1734969934921,3.03856,3291.1,3290.1,3.343352]
[1734969935128,0.03049866,3291.2,3290.1,0.303942]
[1734969935333,0.03049866,3291.2,3289.8,1.6077]
[1734969935334,3.03894,3290.7,3289.8,1.6077]
[1734969935551,3.03949,3290.1,3289.4,1.615]
[1734969935751,4.6322,3290.8,3289.9,3.0396]
[1734969935752,1.6322,3290.8,3289.9,3.0396]
[1734969936035,1.38323729,3291.0,3289.6,1.5423]
[1734969936294,1.38323729,3291.0,3289.7,0.03038836]
[1734969936450,1.38323729,3291.0,3290.4,3.0391]
[1734969936835,1.38323729,3291.0,3289.8,2.59456884]
[1734969936836,1.38323729,3291.0,3290.2,0.61708917]
[1734969937194,1.38323729,3291.0,3290.4,3.03912]
[1734969937758,1.38323729,3291.0,3290.2,0.61708917]
[1734969937966,3.03878,3290.8,3289.9,8.95]
[1734969938167,3.0,3290.7,3290.0,1.15445688]
[1734969938378,4.64898,3290.8,3289.9,8.95]
[1734969938379,3.03897,3290.6,3289.9,8.95]
[1734969938579,3.0,3290.5,3289.9,8.95]
[1734969939247,3.0,3290.5,3288.9,10.4784]
[1734969939248,3.03927,3290.3,3288.9,10.4784]
[1734969939459,3.0,3290.1,3289.5,0.59570942]
[1734969939653,3.03945,3290.1,3289.5,0.59570942]
[1734969939877,3.0,3290.2,3289.5,0.59570942]
[1734969940044,3.0,3290.2,3288.9,1.55879473]
[1734969940271,1.6102,3290.8,3289.0,0.15587947]
[1734969940272,0.03049866,3290.1,3289.0,0.15587947]
[1734969940520,3.0,3289.6,3288.9,0.61837137]
[1734969940654,4.5897,3289.8,3288.5,3.04084]
[1734969940853,3.0,3289.5,3288.5,3.04084]
[1734969941164,3.0,3289.5,3287.8,8.95]
[1734969941165,0.03049866,3289.4,3287.8,8.95]
[1734969941460,3.04003,3289.5,3288.0,0.60801237]
[1734969941461,3.0,3289.0,3288.0,0.60801237]
[1734969941675,3.0,3289.0,3288.1,0.36493924]
[1734969941855,3.0,3288.9,3288.1,0.36493924]
[1734969942060,1.5897,3289.2,3288.1,0.36493924]
[1734969942608,1.5897,3289.2,3288.0,0.60801237]
[1734969942808,3.0,3288.8,3288.0,0.60801237]
[1734969942962,3.0,3289.0,3288.0,0.60801237]
[1734969943490,1.5897,3288.5,3287.3,1.5284]
[1734969943690,0.03049866,3288.4,3286.9,2.77592826]
[1734969943915,3.04174,3287.6,3287.0,0.27759283]
[1734969944059,3.04117,3288.2,3287.0,1.24752826]
[1734969944060,3.0,3287.5,3287.0,1.24752826]
[1734969944256,0.03049866,3287.6,3287.0,1.24752826]
[1734969944600,3.04202,3287.3,3287.0,1.24752826]
[1734969944755,4.6141,3287.7,3287.0,1.24752826]
[1734969944756,3.0,3287.4,3287.0,1.24752826]
[1734969945090,1.6602,3288.6,3287.1,1.5058]
[1734969945299,1.6602,3288.6,3287.9,3.04137]
[1734969945499,3.04046,3289.0,3287.9,3.04137]
[1734969945500,1.6602,3289.0,3287.9,3.04137]
[1734969945797,3.04059,3288.9,3288.0,1.5058]
[1734969946298,1.6602,3289.0,3288.0,1.5058]
[1734969946299,3.04067,3288.8,3288.0,1.5058]
[1734969946499,3.0,3288.9,3288.0,1.5058]
[1734969946706,3.0,3288.7,3288.0,2.02118727]
[1734969946860,4.70065,3289.0,3288.0,1.5058]
[1734969947463,1.6602,3289.0,3288.2,3.04114]
[1734969947894,4.66315,3289.4,3288.2,3.0411]
[1734969948089,1.623,3289.4,3288.2,3.04116]
[1734969948301,1.623,3289.4,3288.4,3.04097]
[1734969948483,1.623,3289.4,3288.4,3.345067]
[1734969949071,4.623,3289.4,3288.4,3.345067]
[1734969949929,1.623,3290.0,3288.5,1.5414]
[1734969950216,0.03049866,3289.9,3288.5,1.5414]
[1734969950427,0.03049866,3289.9,3288.6,0.59871512]
[1734969950717,0.16534987,3289.8,3288.6,3.63946512]
[1734969950883,1.623,3290.0,3288.7,0.03040406]
[1734969951071,1.623,3290.0,3289.1,3.04031]
[1734969951267,1.623,3290.0,3289.1,3.04026]
[1734969951974,1.623,3290.0,3288.6,9.54871512]
[1734969951975,3.03996,3289.6,3288.6,9.54871512]
[1734969952226,1.623,3290.0,3288.6,10.68813633]
[1734969952521,4.66252,3290.0,3288.6,10.68813633]
[1734969952828,3.0,3289.9,3288.6,9.54871512]
[1734969952969,3.0,3289.3,3288.5,1.5414]
[1734969953286,3.0,3289.4,3287.8,1.5561]
[1734969953485,3.0,3289.6,3288.6,1.5561]
[1734969954271,1.5614,3289.7,3288.7,3.04069]
[1734969954470,3.0,3289.3,3288.1,0.61347149]
[1734969954673,3.0,3289.3,3288.3,3.04106]
[1734969954921,3.04043,3289.1,3288.2,1.5719]
[1734969955122,2.01754,3289.7,3288.1,0.61347149]
[1734969955123,3.0,3288.8,3288.1,0.61347149]
[1734969955349,1.6119,3288.9,3288.1,0.61347149]
[1734969955708,3.0,3288.8,3287.8,1.5719]
[1734969955908,1.6119,3288.9,3287.9,0.15719]
[1734969956209,1.6119,3289.6,3288.0,0.64077063]
[1734969956552,1.6119,3289.6,3288.7,3.04062]
[1734969956962,1.6119,3289.6,3288.6,1.5719]
[1734969957257,1.5114,3290.0,3289.0,3.04038]
[1734969957567,5.006002,3290.0,3289.0,3.04038]
[1734969958239,6.03961,3289.9,3288.8,3.04059]
[1734969958457,6.03961,3289.9,3288.6,1.5719]
[1734969958458,3.0,3289.7,3288.6,4.61267]
[1734969958667,1.5114,3289.5,3288.0,1.5702]
[1734969958808,3.0,3289.4,3288.3,3.041]
[1734969959036,3.0,3289.3,3288.4,0.3041]
[1734969959277,3.0,3289.3,3288.3,3.041]
[1734969959576,3.0,3289.3,3288.4,3.04095]
[1734969959874,1.5114,3289.5,3288.0,1.5702]
[1734969959875,3.04035,3289.1,3288.0,1.5702]
[1734969960033,3.0,3289.0,3288.0,1.5702]
[1734969960231,3.04057,3288.9,3288.0,1.5702]
[1734969960479,3.0,3288.8,3288.0,1.5702]
[1734969960841,3.0,3288.8,3288.6,0.61711874]
[1734969961139,3.03049866,3289.4,3288.6,0.61711874]
[1734969961342,1.5114,3289.5,3288.6,0.61711874]
[1734969961564,1.5114,3289.5,3288.6,3.65790874]
[1734969961744,3.0,3289.4,3288.6,0.61711874]
[1734969961951,0.48163866,3289.3,3288.6,0.61711874]
[1734969962140,6.04042,3289.1,3288.6,0.61711874]
[1734969962964,3.0,3289.1,3288.6,0.61711874]
[1734969963133,1.5114,3289.5,3288.6,0.61711874]
[1734969963675,3.0,3289.2,3288.6,0.61711874]
[1734969964051,1.6358,3290.5,3288.9,1.6636]
[1734969964269,3.74102688,3290.8,3289.9,3.03958]
[1734969964581,3.74102688,3290.8,3289.3,8.95]
[1734969964582,3.77152554,3290.8,3289.3,8.95]
[1734969964725,0.03049866,3290.7,3289.3,11.99015]
[1734969964931,4.57715,3290.6,3289.3,8.95]
[1734969965164,3.03942,3290.1,3289.2,1.6636]
[1734969965374,3.03922,3290.4,3289.3,3.04007]
[1734969965680,3.03943,3290.1,3289.2,1.6636]
[1734969966378,4.5382,3290.6,3289.2,4.70384]
[1734969966575,3.0,3290.1,3289.2,4.70384]
[1734969966875,3.0,3290.1,3289.3,0.03039757]
[1734969967082,1.5382,3290.6,3289.3,0.50382133]
[1734969967262,2.97023729,3291.0,3289.3,0.03039757]
[1734969967568,2.97023729,3291.0,3290.1,3.03942]
[1734969967792,2.97023729,3291.0,3290.2,0.03038932]
[1734969967938,2.97023729,3291.0,3289.9,3.03958]
[1734969968135,6.00886729,3291.0,3289.9,3.03958]
[1734969968350,6.00886729,3291.0,3289.7,0.03038934]
[1734969968351,3.03881,3290.8,3289.7,3.65022139]
[1734969968552,6.03889,3290.7,3289.7,0.61046139]
[1734969968746,3.57112402,3291.0,3289.7,0.61046139]
[1734969968747,3.0,3290.4,3289.7,0.61046139]
[1734969969091,1.38323729,3291.0,3290.5,3.03904]
[1734969969381,1.38323729,3291.0,3289.8,1.6597]
[1734969969382,1.38323729,3291.0,3290.7,4.69854]
[1734969969547,1.38323729,3291.0,3290.7,1.6597]
[1734969970494,1.38323729,3291.0,3290.7,2.129563]
[1734969971342,1.38323729,3291.0,3290.7,1.6597]
[1734969971788,1.38323729,3291.0,3290.9,3.03868]
[1734969972694,1.38323729,3291.0,3290.7,4.6985]
[1734969972861,3.0376,3292.1,3290.7,1.6900834]
[1734969973069,1.6369,3292.2,3290.8,0.03037827]
[1734969973377,3.03711,3292.6,3291.6,3.03802]
[1734969973579,0.03049866,3292.9,3291.5,1.5205]
[1734969973763,3.03747,3292.3,3291.5,1.5205]
[1734969974547,3.0,3292.5,3291.5,4.55861]
[1734969974764,6.03728,3292.5,3291.9,0.60178867]
[1734969974958,3.03703,3292.7,3291.5,1.5205]
[1734969975196,3.03684,3292.9,3291.7,0.59624475]
[1734969975385,3.03684,3292.9,3291.7,3.63414475]
[1734969975587,3.03714,3292.6,3291.7,0.59624475]
[1734969975787,3.03741,3292.3,3291.6,0.15205]